fUSD/lending_fUSD_20260324
["ID","MTS","AMOUNT","RATE_DAILY","PERIOD"]
[408830597,1774337445629,-1023.93909933,0.00013954,2]
[408830608,1774337445719,-5706.00362237,0.00013954,2]
[408830845,1774337467602,7758.433154,7.945e-05,2]
[408830846,1774337546686,5534.0,0.000105,5]
[408830847,1774337546913,5340.0,0.000103,3]
[408830848,1774338010756,162.0,0.000105,3]
[408830849,1774338222202,173.0,6.785e-05,2]
[408830850,1774338222261,165.0,6.785e-05,2]
[408830851,1774338222316,165.0,6.785e-05,2]
[408830852,1774338222490,165.0,6.785e-05,2]
[408830853,1774338222542,165.0,6.785e-05,2]
[408830854,1774338222726,165.0,6.785e-05,2]
[408830855,1774338222958,165.0,6.785e-05,2]
[408830856,1774338223322,165.0,6.785e-05,2]
[408830857,1774338223400,165.0,6.785e-05,2]
[408830858,1774338314561,5534.0,0.000105,5]
[408830859,1774338314786,5532.0,0.000103,3]
[408830860,1774338565273,5533.0,0.000105,5]
[408830861,1774338574129,-200.0,9.9e-05,2]
[408830862,1774338574150,-4459.95492875,0.00010008,2]
[408830863,1774338596194,3418.0,0.000105,5]
[408830866,1774338631872,-633.91962363,0.00010008,2]
[408830867,1774338631882,-250.0,0.00010008,2]
[408830868,1774338631892,-260.0,0.00010008,2]
[408830869,1774338631901,-168.36,0.00010215,2]
[408830870,1774338631911,-5563.218069,0.00010781,2]
[408830871,1774338631920,-1200.0,0.00010889,2]
[408830872,1774338631933,-291.2351601,0.0001089,2]
[408830873,1774338631944,-5000.0,0.0001089,2]
[408830874,1774338631954,-250.0,0.0001089,2]
[408830875,1774338631963,-300.0,0.00011178,2]
[408830876,1774338631973,-1680.0,0.00011978,2]
[408830877,1774338631983,-200.0,0.000121,2]
[408830878,1774338631993,-896.0,0.00012122,2]
[408830879,1774338632002,-687.0,0.00012182,2]
[408830880,1774338632012,-1676.87,0.00012183,2]
[408830882,1774338632022,-420.0,0.00012281,2]
[408830883,1774338632031,-1484.23,0.00012339,2]
[408830884,1774338632041,-150.0,0.000125,2]
[408830885,1774338632052,-3352.32,0.00012532,2]
[408830886,1774338632062,-338.82,0.00012583,2]
[408830887,1774338632072,-1149.41,0.00012604,2]
[408830888,1774338632082,-369.0,0.00012651,2]
[408830889,1774338632092,-6985.43,0.00012693,2]
[408830891,1774338632102,-2000.0,0.00012733,2]
[408830894,1774338632112,-500.0,0.0001284,2]
[408830896,1774338632122,-1301.63,0.00012986,2]
[408830898,1774338632131,-250.0,0.00013,2]
[408830900,1774338632141,-250.37440828,0.00013081,2]
[408830902,1774338632151,-2351.0,0.00013176,2]
[408830903,1774338632160,-150.0,0.0001319,2]
[408830904,1774338632170,-7949.09,0.00013191,2]
[408830905,1774338632179,-500.0,0.00013204,2]
[408830906,1774338632189,-500.0,0.00013204,2]
[408830907,1774338632199,-201.96082894,0.00013204,2]
[408830908,1774338632208,-500.0,0.00013204,2]
[408830909,1774338632218,-500.0,0.00013204,2]
[408830910,1774338632227,-500.0,0.00013204,2]
[408830911,1774338632237,-577.6093056,0.00013204,2]
[408830912,1774338632247,-172.63637732,0.00013204,2]
[408830913,1774338632257,-151.0,0.00013204,2]
[408830914,1774338632266,-151.0,0.00013204,2]
[408830915,1774338632276,-151.0,0.00013204,2]
[408830916,1774338632285,-151.0,0.00013204,2]
[408830917,1774338632295,-151.0,0.00013204,2]
[408830918,1774338632306,-151.0,0.00013204,2]
[408830919,1774338632315,-151.0,0.00013204,2]
[408830920,1774338632325,-151.0,0.00013204,2]
[408830921,1774338632334,-151.0,0.00013204,2]
[408830922,1774338632346,-151.0,0.00013204,2]
[408830923,1774338632357,-151.0,0.00013204,2]
[408830924,1774338632367,-14243.83,0.00013211,2]
[408830925,1774338632377,-822.55,0.00013268,2]
[408830926,1774338632387,-9552.16786547,0.00013333,2]
[408830927,1774338632397,-500.0,0.00013333,2]
[408830928,1774338632407,-314.18147653,0.00013333,2]
[408830929,1774338632416,-500.0,0.00013333,2]
[408830930,1774338632427,-500.0,0.00013333,2]
[408830931,1774338632436,-500.0,0.00013333,2]
[408830932,1774338632446,-500.0,0.00013333,2]
[408830933,1774338632455,-500.0,0.00013333,2]
[408830934,1774338632464,-500.0,0.00013333,2]
[408830935,1774338632474,-500.0,0.00013333,2]
[408830936,1774338632484,-500.0,0.00013333,2]
[408830937,1774338632494,-389.04698715,0.00013333,2]
[408830938,1774338632510,-500.0,0.00013333,2]
[408830939,1774338632524,-500.0,0.00013333,2]
[408830940,1774338632534,-500.0,0.00013333,2]
[408830941,1774338632550,-151.0,0.00013333,2]
[408830942,1774338632560,-500.0,0.00013333,2]
[408830943,1774338632570,-500.0,0.00013333,2]
[408830944,1774338632580,-500.0,0.00013333,2]
[408830945,1774338632590,-500.0,0.00013333,2]
[408830946,1774338632601,-500.0,0.00013333,2]
[408830947,1774338632611,-262.90206542,0.00013333,2]
[408830948,1774338632620,-2229.99566575,0.00013343,2]
[408830949,1774338632630,-9905.5980765,0.00013388,2]
[408830950,1774338632640,-500.0,0.00013388,2]
[408830951,1774338632650,-209.50441537,0.00013388,2]
[408830952,1774338632661,-272.62944185,0.00013388,2]
[408830953,1774338632672,-500.0,0.00013443,2]
[408830954,1774338632682,-10272.10520533,0.00013443,2]
[408830955,1774338632692,-346.13114041,0.00013443,2]
[408830956,1774338632702,-13791.576,0.00013464,2]
[408830957,1774338632711,-302.0,0.00013493,2]
[408830958,1774338632721,-10652.17309792,0.00013498,2]
[408830959,1774338632731,-500.0,0.00013498,2]
[408830960,1774338632741,-7196.83177668,0.00013553,2]
[408830961,1774338632750,-500.0,0.00013553,2]
[408830962,1774338632760,-500.0,0.00013608,2]
[408830963,1774338632769,-500.0,0.00013663,2]
[408830964,1774338632779,-1056.36,0.00013699,2]
[408830965,1774338632788,-5413.02,0.00013699,2]
[408830966,1774338632798,-299.99,0.00013699,2]
[408830967,1774338632807,-200.0,0.00013699,2]
[408830968,1774338632817,-350.0,0.00013714,2]
[408830969,1774338632827,-500.0,0.00013717,2]
[408830970,1774338632836,-500.0,0.00013717,2]
[408830971,1774338632846,-500.0,0.00013717,2]
[408830972,1774338632856,-500.0,0.00013717,2]
[408830973,1774338632865,-500.0,0.00013717,2]
[408830974,1774338632879,-369.65697198,0.00013717,2]
[408830975,1774338632889,-500.0,0.00013717,2]
[408830976,1774338632900,-500.0,0.00013717,2]
[408830977,1774338632910,-175.19866784,0.00013717,2]
[408830978,1774338632920,-500.0,0.00013717,2]
[408830979,1774338632929,-500.0,0.00013717,2]
[408830980,1774338632946,-500.0,0.00013717,2]
[408830981,1774338632959,-500.0,0.00013717,2]
[408830982,1774338632970,-500.0,0.00013717,2]
[408830983,1774338632979,-500.0,0.00013717,2]
[408830984,1774338632990,-500.0,0.00013717,2]
[408830985,1774338633002,-500.0,0.00013717,2]
[408830986,1774338633012,-500.0,0.00013717,2]
[408830987,1774338633022,-500.0,0.00013717,2]
[408830988,1774338633032,-500.0,0.00013717,2]
[408830989,1774338633045,-500.0,0.00013717,2]
[408830990,1774338633055,-500.0,0.00013717,2]
[408830991,1774338633064,-500.0,0.00013717,2]
[408830992,1774338633074,-500.0,0.00013717,2]
[408830993,1774338633083,-500.0,0.00013717,2]
[408830994,1774338633092,-603.83700226,0.00013717,2]
[408830995,1774338633102,-500.0,0.00013717,2]
[408830996,1774338633112,-500.0,0.00013717,2]
[408830997,1774338633121,-352.22811908,0.00013717,2]
[408830998,1774338633131,-500.0,0.00013717,2]
[408830999,1774338633140,-179.70344844,0.00013717,2]
[408831000,1774338633151,-500.0,0.00013717,2]
[408831001,1774338633161,-500.0,0.00013717,2]
[408831002,1774338633171,-500.0,0.00013717,2]
[408831003,1774338633180,-500.0,0.00013717,2]
[408831004,1774338633190,-500.0,0.00013717,2]
[408831005,1774338633200,-500.0,0.00013717,2]
[408831006,1774338633210,-500.0,0.00013717,2]
[408831007,1774338633220,-500.0,0.00013717,2]
[408831008,1774338633229,-500.0,0.00013717,2]
[408831009,1774338633239,-500.0,0.00013717,2]
[408831010,1774338633252,-500.0,0.00013717,2]
[408831011,1774338633263,-500.0,0.00013717,2]
[408831012,1774338633272,-500.0,0.00013717,2]
[408831013,1774338633282,-500.0,0.00013717,2]
[408831014,1774338633292,-277.14801518,0.00013717,2]
[408831015,1774338633303,-500.0,0.00013717,2]
[408831016,1774338633313,-500.0,0.00013717,2]
[408831017,1774338633323,-449.83519664,0.00013717,2]
[408831018,1774338633333,-154318.9939,0.00013718,2]
[408831019,1774338633349,-500.0,0.00013718,2]
[408831020,1774338633360,-151.0,0.00013718,2]
[408831021,1774338633370,-151.0,0.00013718,2]
[408831022,1774338633382,-151.0,0.00013718,2]
[408831023,1774338633395,-452.54213352,0.00013773,2]
[408831024,1774338633405,-500.0,0.00013773,2]
[408831025,1774338633416,-500.41700518,0.00013773,2]
[408831026,1774338633426,-500.0,0.00013773,2]
[408831027,1774338633436,-197.1265,0.000138,2]
[408831028,1774338633445,-5976.06135227,0.00013824,2]
[408831029,1774338633455,-500.0,0.00013828,2]
[408831030,1774338633469,-515.09415399,0.0001387,2]
[408831031,1774338633479,-500.0,0.0001387,2]
[408831032,1774338633489,-500.0,0.0001387,2]
[408831033,1774338633501,-527.29021656,0.00013915,2]
[408831034,1774338633511,-522.25164134,0.00013915,2]
[408831035,1774338633521,-413.15,0.00013916,2]
[408831036,1774338633531,-500.0,0.00013923,2]
[408831037,1774338633542,-21569.61780617,0.00013924,2]
[408831038,1774338633559,-47836.57274984,0.00013924,2]
[408831039,1774338633571,-16632.8869137,0.00013924,2]
[408831040,1774338633584,-53455.80038102,0.00013924,2]
[408831187,1774338639581,-1329.4660164,0.00013924,2]
[408831267,1774338640538,-21809.03864126,0.00013924,2]
[408831600,1774338643859,-1169.89549861,0.00013924,2]
[408831602,1774338643868,-151.0,0.00013924,2]
[408831604,1774338643877,-151.0,0.00013924,2]
[408831606,1774338643886,-275.451178,0.00013924,2]
[408831608,1774338643896,-151.0,0.00013924,2]
[408831610,1774338643905,-151.0,0.00013924,2]
[408831612,1774338643914,-151.0,0.00013924,2]
[408831614,1774338643923,-151.0,0.00013924,2]
[408831616,1774338643932,-151.0,0.00013924,2]
[408831618,1774338643942,-1000.0,0.00013956,2]
[408831619,1774338643952,-1000.0,0.0001396,2]
[408831622,1774338643962,-1000.0,0.00013971,2]
[408831624,1774338643970,-500.57130054,0.00013973,2]
[408831626,1774338643980,-500.0,0.00013973,2]
[408831627,1774338643989,-500.0,0.00013973,2]
[408831629,1774338643998,-500.0,0.00013973,2]
[408831632,1774338644009,-500.65903266,0.00013973,2]
[408831633,1774338644018,-500.0,0.00013973,2]
[408831636,1774338644027,-500.0,0.00013973,2]
[408831637,1774338644036,-500.80504455,0.00013973,2]
[408831639,1774338644045,-500.0,0.00013973,2]
[408831642,1774338644056,-500.0,0.00013973,2]
[408831644,1774338644065,-501.42929364,0.00013973,2]
[408831646,1774338644075,-500.37949431,0.00013973,2]
[408831647,1774338644084,-500.0,0.00013973,2]
[408831649,1774338644095,-500.52131154,0.00013973,2]
[408831652,1774338644104,-500.0,0.00013973,2]
[408831653,1774338644114,-500.0,0.00013973,2]
[408831656,1774338644123,-500.40479599,0.00013973,2]
[408831657,1774338644133,-500.0,0.00013973,2]
[408831659,1774338644142,-500.58525136,0.00013973,2]
[408831662,1774338644152,-500.0,0.00013973,2]
[408831663,1774338644162,-500.83207171,0.00013973,2]
[408831665,1774338644171,-500.0,0.00013973,2]
[408831667,1774338644182,-500.0,0.00013973,2]
[408831669,1774338644191,-500.0,0.00013973,2]
[408831672,1774338644201,-500.0,0.00013973,2]
[408831674,1774338644210,-500.0,0.00013973,2]
[408831676,1774338644219,-500.0,0.00013973,2]
[408831678,1774338644229,-500.57150069,0.00013973,2]
[408831680,1774338644239,-500.73726333,0.00013973,2]
[408831681,1774338644249,-500.0,0.00013973,2]
[408831683,1774338644259,-760.58917303,0.00013984,2]
[408831685,1774338644268,-1000.0,0.00013992,2]
[408831687,1774338644277,-304.0,0.00013993,2]
[408831689,1774338644286,-3838.78284448,0.00014,2]
[408831691,1774338644295,-346.05853734,0.00014,2]
[408831693,1774338644305,-529.0,0.00014,2]
[408831696,1774338644317,-1000.0,0.00014001,2]
[408831697,1774338644326,-304.0,0.00014007,2]
[408831699,1774338644336,-1000.0,0.00014012,2]
[408831702,1774338644346,-168.0,0.00014023,2]
[408831703,1774338644358,-610.01444451,0.00014032,2]
[408831706,1774338644368,-304.0,0.00014033,2]
[408831707,1774338644376,-150.0,0.0001404,2]
[408831709,1774338644386,-166.19172717,0.00014042,2]
[408831712,1774338644396,-5976.06135222,0.00014055,2]
[408831714,1774338644405,-500.0,0.00014056,2]
[408831716,1774338644414,-500.0,0.00014056,2]
[408831718,1774338644425,-1000.0,0.00014056,2]
[408831720,1774338644434,-150.0,0.00014059,2]
[408831722,1774338644443,-1000.0,0.00014063,2]
[408831724,1774338644452,-304.0,0.00014075,2]
[408831726,1774338644462,-1000.0,0.00014081,2]
[408831728,1774338644471,-1000.0,0.0001412,2]
[408831730,1774338644481,-1000.0,0.00014123,2]
[408831732,1774338644490,-304.0,0.00014127,2]
[408831733,1774338644499,-1000.0,0.00014129,2]
[408831736,1774338644509,-304.0,0.00014134,2]
[408831738,1774338644518,-150.0,0.00014139,2]
[408831739,1774338644527,-500.0,0.00014145,2]
[408831742,1774338644537,-582.40708321,0.00014145,2]
[408831743,1774338644547,-500.0,0.00014145,2]
[408831745,1774338644556,-527.85554302,0.00014145,2]
[408831748,1774338644567,-500.0,0.00014145,2]
[408831750,1774338644576,-500.0,0.00014145,2]
[408831752,1774338644586,-150.0,0.00014146,2]
[408831754,1774338644595,-525.14868204,0.00014154,2]
[408831755,1774338644605,-304.0,0.00014158,2]
[408831757,1774338644615,-304.0,0.00014174,2]
[408831759,1774338644623,-678.1,0.00014175,2]
[408831761,1774338644633,-500.0,0.00014175,2]
[408831763,1774338644642,-1000.0,0.0001418,2]
[408831765,1774338644651,-150.0,0.00014183,2]
[408831767,1774338644660,-413.15,0.0001419,2]
[408831769,1774338644669,-700.0,0.00014199,2]
[408831771,1774338644679,-500.0,0.00014201,2]
[408831773,1774338644688,-200.0,0.00014201,2]
[408831775,1774338644696,-304.0,0.00014202,2]
[408831777,1774338644706,-1000.0,0.00014206,2]
[408831779,1774338644715,-150.0,0.00014207,2]
[408831780,1774338644724,-1000.0,0.00014209,2]
[408831782,1774338644733,-1000.0,0.0001421,2]
[408831784,1774338644742,-150.0,0.00014214,2]
[408831786,1774338644751,-150.0,0.00014219,2]
[408831788,1774338644760,-1000.0,0.00014221,2]
[408831790,1774338644770,-1000.0,0.00014225,2]
[408831792,1774338644778,-695.0,0.00014267,2]
[408831794,1774338644787,-304.0,0.00014278,2]
[408831796,1774338644796,-5976.06135222,0.00014285,2]
[408831797,1774338644805,-255.0,0.00014298,2]
[408831799,1774338644815,-2000.0,0.00014325,2]
[408831801,1774338644824,-952.0,0.0001433,5]
[408831803,1774338644833,-304.0,0.0001433,2]
[408831805,1774338644842,-347.77,0.00014384,2]
[408831807,1774338644852,-151.0,0.00014405,2]
[408831809,1774338644860,-151.0,0.00014405,2]
[408831811,1774338644869,-192.150576,0.00014405,2]
[408831813,1774338644878,-151.0,0.00014405,2]
[408831815,1774338644887,-151.0,0.00014405,2]
[408831817,1774338644897,-151.0,0.00014405,2]
[408831819,1774338644906,-678.1,0.0001442,2]
[408831821,1774338644915,-500.0,0.0001442,2]
[408831823,1774338644924,-166.66,0.00014425,2]
[408831825,1774338644933,-413.15,0.00014464,2]
[408831827,1774338644942,-929.0,0.0001448,5]
[408831829,1774338644951,-3292.0,0.00014493,2]
[408831831,1774338644960,-5976.06135222,0.00014516,2]
[408831833,1774338644969,-957.04254923,0.00014521,2]
[408831835,1774338644978,-1000.0,0.00014521,2]
[408831837,1774338644987,-1000.0,0.00014521,2]
[408831839,1774338644997,-1000.0,0.00014521,2]
[408831841,1774338645006,-677.77703353,0.00014521,2]
[408831843,1774338645015,-1000.0,0.00014521,2]
[408831845,1774338645024,-866.41832896,0.00014521,2]
[408831847,1774338645033,-1000.0,0.00014521,2]
[408831849,1774338645042,-1000.0,0.00014521,2]
[408831850,1774338645052,-1000.0,0.00014521,2]
[408831852,1774338645061,-1000.0,0.00014521,2]
[408831854,1774338645071,-1000.0,0.00014521,2]
[408831856,1774338645079,-1007.02099232,0.00014521,2]
[408831858,1774338645088,-351.2418106,0.00014521,2]
[408831860,1774338645097,-1000.0,0.00014521,2]
[408831862,1774338645106,-502.25747064,0.00014521,2]
[408831864,1774338645116,-1000.0,0.00014521,2]
[408831866,1774338645125,-502.46732951,0.00014521,2]
[408831868,1774338645135,-1000.0,0.00014521,2]
[408831870,1774338645144,-168.0,0.00014587,2]
[408831872,1774338645153,-151.0,0.0001459,2]
[408831874,1774338645162,-151.0,0.0001459,2]
[408831876,1774338645170,-154.0,0.00014595,2]
[408831878,1774338645180,-198.0,0.00014595,2]
[408831880,1774338645189,-1345.0,0.0001461,2]
[408831882,1774338645198,-1045.0,0.0001461,2]
[408831884,1774338645207,-621.0,0.0001461,2]
[408831886,1774338645216,-3514.0,0.0001461,2]
[408831888,1774338645225,-1262.0,0.0001461,2]
[408831890,1774338645233,-415.0,0.0001461,2]
[408831892,1774338645243,-3762.0,0.0001461,2]
[408831894,1774338645252,-6009.0,0.0001461,2]
[408831896,1774338645261,-165.42,0.00014622,2]
[408831898,1774338645270,-413.15,0.00014738,2]
[408831900,1774338645279,-5976.06135222,0.00014747,2]
[408831902,1774338645289,-500.0,0.00014814,2]
[408831904,1774338645298,-500.0,0.00014814,2]
[408831906,1774338645307,-500.0,0.00014814,2]
[408831908,1774338645316,-500.0,0.00014814,2]
[408831910,1774338645327,-1490.894,0.00014833,2]
[408831912,1774338645336,-173.764,0.00014833,2]
[408831914,1774338645345,-166.66,0.00014857,2]
[408831915,1774338645358,-822.55,0.00014926,2]
[408831917,1774338645367,-166.66,0.00014975,2]
[408831919,1774338645377,-151.0,0.00014977,2]
[408831922,1774338645387,-151.0,0.00014977,2]
[408831924,1774338645396,-151.0,0.00014977,2]
[408831925,1774338645406,-5976.06135222,0.00014977,2]
[408831928,1774338645415,-154.7857157,0.00014983,2]
[408831929,1774338645425,-967.0,0.00014995,5]
[408831931,1774338645434,-574.0,0.00015,2]
[408831933,1774338645444,-300.0,0.00015,2]
[408831936,1774338645453,-413.15,0.00015012,2]
[408831937,1774338645462,-150.119,0.00015027,2]
[408831940,1774338645471,-150.0,0.00015027,2]
[408831941,1774338645481,-186.656,0.00015027,2]
[408831944,1774338645491,-151.0,0.00015068,2]
[408831946,1774338645500,-151.0,0.00015068,2]
[408831948,1774338645510,-1500.0,0.00015068,2]
[408831950,1774338645519,-1001.20346017,0.00015068,2]
[408831952,1774338645528,-1500.0,0.00015068,2]
[408831953,1774338645538,-183.65884113,0.00015068,2]
[408831955,1774338645547,-209.45111758,0.00015068,2]
[408831958,1774338645556,-1500.0,0.00015068,2]
[408831961,1774338645566,-1500.0,0.00015068,2]
[408831964,1774338645576,-1500.0,0.00015068,2]
[408831966,1774338645585,-1500.21901505,0.00015068,2]
[408831969,1774338645594,-1500.0,0.00015068,2]
[408831971,1774338645603,-1500.0,0.00015068,2]
[408831973,1774338645612,-888.43757161,0.00015068,2]
[408831975,1774338645621,-347.77,0.00015068,2]
[408831977,1774338645630,-259.0592,0.000151,2]
[408831979,1774338645640,-500.0,0.00015122,2]
[408831981,1774338645649,-168.0,0.0001519,2]
[408831983,1774338645658,-171.82,0.000152,2]
[408831984,1774338645667,-5976.06135222,0.00015208,2]
[408831985,1774338645676,-195.46,0.00015217,2]
[408831986,1774338645685,-500.0,0.0001524,2]
[408831987,1774338645693,-502.64914978,0.0001524,2]
[408831988,1774338645703,-500.0,0.0001524,2]
[408831989,1774338645711,-500.0,0.0001524,2]
[408831991,1774338645720,-502.09787478,0.0001524,2]
[408831993,1774338645729,-155.0,0.00015241,2]
[408831995,1774338645739,-380.211425,0.00015263,7]
[408831997,1774338645748,-1168.272952,0.00015263,7]
[408831999,1774338645757,-2651.83789,0.00015289,7]
[408832001,1774338645766,-178.82,0.00015296,2]
[408832003,1774338645775,-211.585837,0.000153,2]
[408832005,1774338645785,-151.0,0.000153,2]
[408832007,1774338645794,-2000.0,0.000153,5]
[408832009,1774338645803,-2223.749816,0.00015306,7]
[408832011,1774338645817,-500.7456305,0.00015311,2]
[408832013,1774338645826,-500.0,0.00015315,2]
[408832015,1774338645835,-2374.002028,0.00015366,2]
[408832017,1774338645844,-168.0,0.0001537,2]
[408832019,1774338645854,-2979.62421771,0.00015377,2]
[408832021,1774338645863,-4000.0,0.000154,5]
[408832023,1774338645872,-166.66,0.00015423,2]
[408832025,1774338645882,-500.0,0.00015426,2]
[408832027,1774338645892,-165.42,0.00015434,2]
[408832029,1774338645901,-500.0,0.00015438,2]
[408832031,1774338645911,-5976.06135222,0.00015439,2]
[408832033,1774338645920,-433.0,0.00015498,2]
[408832035,1774338645930,-6100.0,0.000155,5]
[408832037,1774338645939,-4000.0,0.00015507,2]
[408832039,1774338645948,-166.66,0.00015525,2]
[408832041,1774338645957,-154.0,0.00015595,2]
[408832043,1774338645966,-198.0,0.00015595,2]
[408832046,1774338645976,-8100.0,0.000156,5]
[408832048,1774338645985,-151.0,0.000156,2]
[408832050,1774338645994,-151.0,0.000156,2]
[408832052,1774338646003,-291.918104,0.000156,2]
[408832054,1774338646015,-168.58432958,0.000156,2]
[408832056,1774338646025,-2000.0,0.00015616,2]
[408832058,1774338646034,-2000.0,0.00015616,2]
[408832060,1774338646043,-352.74121651,0.00015616,2]
[408832062,1774338646052,-1036.55977636,0.00015616,2]
[408832064,1774338646061,-501.2710339,0.00015616,2]
[408832066,1774338646070,-1263.35465888,0.00015616,2]
[408832068,1774338646079,-2000.0,0.00015616,2]
[408832070,1774338646089,-350.0,0.00015624,2]
[408832072,1774338646098,-168.0,0.0001565,2]
[408832074,1774338646108,-151.0,0.00015651,2]
[408832076,1774338646118,-151.0,0.00015651,2]
[408832078,1774338646127,-5976.06135222,0.00015669,2]
[408832080,1774338646137,-463.77546128,0.0001567,2]
[408832082,1774338646146,-150.0,0.00015691,2]
[408832084,1774338646155,-756.63832576,0.00015691,2]
[408832086,1774338646164,-150.0,0.00015691,2]
[408832088,1774338646173,-12356.10436,0.00015691,2]
[408832090,1774338646182,-151.0,0.000157,2]
[408832092,1774338646192,-10200.0,0.000157,5]
[408832094,1774338646201,-2000.0,0.000157,2]
[408832096,1774338646211,-347.77,0.00015753,2]
[408832098,1774338646220,-5000.0,0.00015786,2]
[408832100,1774338646229,-325.1146037,0.00015788,2]
[408832102,1774338646238,-1000.0,0.00015788,2]
[408832104,1774338646247,-501.40684297,0.00015788,2]
[408832106,1774338646257,-150.27399702,0.0001579,2]
[408832108,1774338646266,-400.5875051,0.000158,2]
[408832110,1774338646276,-2000.0,0.000158,5]
[408832112,1774338646285,-10000.0,0.000158,2]
[408832114,1774338646294,-2000.0,0.000158,2]
[408832116,1774338646303,-485.91,0.00015862,2]
[408832118,1774338646314,-1000.0,0.00015863,2]
[408832120,1774338646323,-36549.4516545,0.00015886,2]
[408832122,1774338646332,-2000.0,0.0001589,2]
[408832124,1774338646342,-4000.0,0.00015895,2]
[408832126,1774338646354,-151.0,0.00015895,2]
[408832128,1774338646364,-151.0,0.00015895,2]
[408832130,1774338646373,-678.1,0.00015899,2]
[408832132,1774338646383,-500.0,0.00015899,2]
[408832134,1774338646394,-500.0,0.00015899,2]
[408832136,1774338646403,-500.0,0.00015899,2]
[408832138,1774338646412,-528.19759486,0.00015899,2]
[408832140,1774338646422,-472.64060135,0.00015899,2]
[408832142,1774338646431,-500.0,0.00015899,2]
[408832144,1774338646440,-500.0,0.00015899,2]
[408832146,1774338646450,-273.65039375,0.00015899,2]
[408832148,1774338646459,-500.0,0.00015899,2]
[408832150,1774338646468,-260720.55497414,0.000159,2]
[408832152,1774338646477,-714.68,0.000159,2]
[408832154,1774338646486,-857.49,0.000159,2]
[408832156,1774338646496,-151.0,0.000159,2]
[408832158,1774338646505,-2000.0,0.000159,5]
[408832160,1774338646515,-5976.06135222,0.000159,2]
[408832162,1774338646524,-176.30167223,0.000159,2]
[408832164,1774338646533,-2986.27155712,0.000159,2]
[408832166,1774338646542,-1598.18270498,0.000159,2]
[408832168,1774338646552,-195.85165993,0.000159,2]
[408832170,1774338646561,-766.1939524,0.000159,2]
[408832172,1774338646570,-289.63369234,0.000159,2]
[408832174,1774338646580,-2000.0,0.000159,2]
[408832176,1774338646589,-2000.0,0.00015917,2]
[408832178,1774338646598,-453.58578002,0.00015921,2]
[408832180,1774338646608,-3104.0,0.00015943,2]
[408832182,1774338646617,-1117.018425,0.00015954,7]
[408832184,1774338646627,-678.1,0.00015959,2]
[408832186,1774338646636,-3796.66772603,0.0001596,2]
[408832188,1774338646646,-1053.24535537,0.0001597,2]
[408832190,1774338646655,-700.0,0.0001597,2]
[408832192,1774338646664,-700.0,0.0001597,2]
[408832194,1774338646674,-700.0,0.0001597,2]
[408832196,1774338646683,-700.0,0.0001597,2]
[408832199,1774338646692,-327.0,0.00015973,2]
[408832201,1774338646702,-8660.0,0.00015973,2]
[408832202,1774338646711,-222.825786,0.00015975,7]
[408832205,1774338646720,-166.66,0.0001599,2]
[408832207,1774338646730,-156.52512635,0.0001599,2]
[408832209,1774338646739,-156.52512635,0.0001599,2]
[408832211,1774338646748,-156.52512635,0.0001599,2]
[408832213,1774338646758,-500.0,0.00015997,2]